[Event "GER-ch Youth U10 2019"]
[Site "Willingen"]
[Date "2019.06.09"]
[Round "1.2"]
[White "Chugunov, Ivan"]
[Black "Ermitsch, Magnus"]
[Result "1/2-1/2"]
[ECO "B40"]
[WhiteElo "1310"]
[BlackElo "1843"]
[Annotator "NA"]
[PlyCount "50"]
[EventDate "2019.06.07"]
[EventType "swiss"]
[EventRounds "11"]
[EventCountry "GER"]
[SourceTitle "playchess.com"]
[Source "ChessBase"]
[SourceQuality "1"]
[TimeControl "40/4500+30:900+30"]

1. e4 {[%emt 0:00:00]} c5 {[%emt 0:00:08]} 2. Nf3 {[%emt 0:01:01]} e6 {[%emt 0:00:36]} 3. c3 {[%emt 0:00:29]} Nf6 {[%emt 0:01:56]} 4. e5 {[%emt 0:00:37]} Nd5 {[%emt 0:01:18]} 5. g3 {[%emt 0:00:48]} Be7 {[%emt 0:02:02]} 6. Bg2 {[%emt 0:00:54]} d6 {[%emt 0:01:37]} 7. O-O {[%emt 0:01:38]} dxe5 {[%emt 0:01:29]} 8. Nxe5 {[%emt 0:01:00]} Qc7 {[%emt 0:05:37]} 9. f4 {[%emt 0:03:41]} Nc6 {[%emt 0:05:30]} 10. Nc4 Rb8 {[%emt 0:02:32]} 11. Nba3 {[%emt 0:10:37]} a6 {[%emt 0:06:39]} 12. d3 {[%emt 0:02:25]} b5 {[%emt 0:08:00]} 13. Ne3 {[%emt 0:00:41]} Nxe3 {[%emt 0:01:42]} 14. Bxe3 {[%emt 0:00:18]} Bb7 {[%emt 0:03:36]} 15. f5 {[%emt 0:01:30]} Nd8 {[%emt 0:03:18]} 16. Qg4 {[%emt 0:03:11]} Bf6 {[%emt 0:04:16]} 17. Rae1 {[%emt 0:01:36]} Bxg2 {[%emt 0:04:18]} 18. Kxg2 {[%emt 0:00:55]} h5 {[%emt 0:00:59]} 19. Qe4 {[%emt 0:02:24]} Qc6 {[%emt 0:05:08]} 20. Qxc6+ {[%emt 0:00:48]} Nxc6 {[%emt 0:00:01]} 21. Bxc5 {[%emt 0:00:31]} Kd7 {[%emt 0:02:56]} 22. fxe6+ {[%emt 0:01:00]} fxe6 {[%emt 0:00:16]} 23. Re2 {[%emt 0:04:37]} b4 {[%emt 0:03:31]} 24. Nb1 {[%emt 0:00:44]} Rb5 {[%emt 0:04:09]} 25. d4 Rbb8 {normal} 1/2-1/2

[Event "GER-ch Youth U10 2019"]
[Site "Willingen"]
[Date "2019.06.09"]
[Round "1.3"]
[White "Helms, Finn"]
[Black "Li, Ruokai David"]
[Result "1-0"]
[ECO "D00"]
[WhiteElo "1773"]
[BlackElo "1934"]
[Annotator "NA"]
[PlyCount "103"]
[EventDate "2019.06.07"]
[EventType "swiss"]
[EventRounds "11"]
[EventCountry "GER"]
[SourceTitle "playchess.com"]
[Source "ChessBase"]
[SourceQuality "1"]
[TimeControl "40/4500+30:900+30"]

1. d4 {[%emt 0:00:00]} d5 {[%emt 0:00:00]} 2. Bf4 {[%emt 0:00:00]} Bf5 {[%emt 0:00:02]} 3. e3 {[%emt 0:00:00]} Nf6 {[%emt 0:00:14]} 4. c4 {[%emt 0:00:00]} e6 {[%emt 0:00:12]} 5. Nc3 {[%emt 0:00:00]} Bb4 {[%emt 0:00:38]} 6. Qb3 {[%emt 0:00:26]} Nc6 {[%emt 0:00:36]} 7. a3 {[%emt 0:00:28]} Bxc3+ {[%emt 0:00:12]} 8. bxc3 {[%emt 0:00:31]} Rb8 {[%emt 0:00:51]} 9. Nf3 {[%emt 0:00:17]} O-O {[%emt 0:00:29]} 10. Be2 {[%emt 0:00:38]} Be4 {[%emt 0:01:21]} 11. O-O {[%emt 0:00:39]} Bxf3 {[%emt 0:01:19]} 12. gxf3 {[%emt 0:01:27]} Nh5 {[%emt 0:00:33]} 13. Bg3 {[%emt 0:00:20]} Nxg3 {[%emt 0:02:35]} 14. hxg3 {[%emt 0:00:48]} Na5 {[%emt 0:00:42]} 15. Qa4 {[%emt 0:00:59]} Nxc4 {[%emt 0:01:27]} 16. Bxc4 {[%emt 0:00:04]} dxc4 {[%emt 0:00:09]} 17. Qxc4 {[%emt 0:00:07]} c6 {[%emt 0:03:36]} 18. e4 {[%emt 0:02:53]} Qf6 {[%emt 0:00:55]} 19. f4 {[%emt 0:01:07]} Qg6 {[%emt 0:00:39]} 20. Rfe1 {[%emt 0:02:20]} Qh5 {[%emt 0:02:33]} 21. Kg2 {[%emt 0:00:37]} Qb5 {[%emt 0:00:14]} 22. Qxb5 {[%emt 0:00:47]} cxb5 {[%emt 0:00:06]} 23. a4 {[%emt 0:00:41]} bxa4 {[%emt 0:00:29]} 24. Rxa4 {[%emt 0:00:07]} Rfc8 {[%emt 0:00:11]} 25. Re3 {[%emt 0:01:21]} a6 {[%emt 0:00:35]} 26. Rd3 {[%emt 0:00:21]} Rd8 {[%emt 0:01:59]} 27. Kf3 {[%emt 0:00:35]} Kf8 {[%emt 0:00:34]} 28. d5 {[%emt 0:01:01]} Ke7 {[%emt 0:02:01]} 29. Rad4 {[%emt 0:02:32]} Rd6 {[%emt 0:00:28]} 30. c4 {[%emt 0:00:31]} Rc8 {[%emt 0:01:40]} 31. e5 {[%emt 0:00:38]} Rdd8 {[%emt 0:01:00]} 32. d6+ {[%emt 0:00:56]} Kd7 {[%emt 0:00:07]} 33. Rb3 {[%emt 0:01:30]} Kc6 {[%emt 0:00:35]} 34. Ke4 {[%emt 0:01:37]} b6 {[%emt 0:01:04]} 35. g4 {[%emt 0:02:49]} g6 {[%emt 0:01:36]} 36. f5 {[%emt 0:00:21]} a5 {[%emt 0:00:54]} 37. fxe6 {[%emt 0:00:16]} fxe6 {[%emt 0:00:10]} 38. f4 {[%emt 0:00:13]} Rf8 {[%emt 0:00:16]} 39. Rbd3 {[%emt 0:03:43]} Kd7 {[%emt 0:00:34]} 40. Rf3 {[%emt 0:01:29]} a4 {[%emt 0:01:06]} 41. Ra3 {[%emt 0:15:33]} Ra8 {[%emt 0:15:10]} 42. Rd2 {[%emt 0:00:24]} Rfc8 {[%emt 0:00:27]} 43. Rd4 {[%emt 0:02:14]} Rf8 {[%emt 0:00:07]} 44. Rdd3 {[%emt 0:01:11]} Kc6 {[%emt 0:00:48]} 45. Rf3 {[%emt 0:01:10]} Ra5 {[%emt 0:02:38]} 46. f5 {[%emt 0:00:37]} gxf5+ {[%emt 0:00:11]} 47. gxf5 {[%emt 0:00:05]} Rxf5 {[%emt 0:00:06]} 48. Rxf5 {[%emt 0:00:04]} exf5+ {[%emt 0:00:06]} 49. Kxf5 {[%emt 0:00:06]} Kd7 {[%emt 0:00:14]} 50. Rh3 {[%emt 0:01:09]} a3 {[%emt 0:00:44]} 51. Rxh7+ {[%emt 0:00:09]} Kc6 {[%emt 0:00:07]} 52. Rc7# {normal} 1-0

[Event "GER-ch Youth U10 2019"]
[Site "Willingen"]
[Date "2019.06.09"]
[Round "1.4"]
[White "Brügmann, Nick"]
[Black "Sommer, Justus"]
[Result "1/2-1/2"]
[ECO "C54"]
[WhiteElo "1415"]
[BlackElo "1684"]
[Annotator "NA"]
[PlyCount "103"]
[EventDate "2019.06.07"]
[EventType "swiss"]
[EventRounds "11"]
[EventCountry "GER"]
[SourceTitle "playchess.com"]
[Source "ChessBase"]
[SourceQuality "1"]
[TimeControl "40/4500+30:900+30"]

1. e4 {[%emt 0:00:00]} e5 {[%emt 0:00:00]} 2. Nf3 {[%emt 0:00:00]} Nc6 {[%emt 0:00:05]} 3. Bc4 {[%emt 0:00:00]} Bc5 {[%emt 0:00:08]} 4. c3 {[%emt 0:00:00]} Nf6 {[%emt 0:00:09]} 5. d3 {[%emt 0:00:00]} d6 {[%emt 0:00:22]} 6. a4 {[%emt 0:00:04]} a5 {[%emt 0:00:10]} 7. h3 {[%emt 0:00:10]} Be6 {[%emt 0:00:13]} 8. Bb3 {[%emt 0:00:24]} Qd7 {[%emt 0:00:29]} 9. Nbd2 {[%emt 0:00:22]} h6 {[%emt 0:00:44]} 10. Bxe6 {[%emt 0:00:50]} Qxe6 {[%emt 0:00:47]} 11. O-O {[%emt 0:00:36]} O-O {[%emt 0:00:28]} 12. Re1 {[%emt 0:00:15]} Bb6 {[%emt 0:00:34]} 13. Nc4 {[%emt 0:00:47]} Ba7 {[%emt 0:00:43]} 14. Be3 {[%emt 0:00:23]} Rfe8 {[%emt 0:01:16]} 15. Bxa7 {[%emt 0:00:42]} Rxa7 {[%emt 0:00:13]} 16. Na3 {[%emt 0:01:29]} Raa8 {[%emt 0:01:37]} 17. Nb5 {[%emt 0:00:44]} Qd7 {[%emt 0:00:11]} 18. Qc2 {[%emt 0:00:23]} d5 {[%emt 0:01:59]} 19. exd5 {[%emt 0:00:42]} Nxd5 {[%emt 0:00:10]} 20. d4 {[%emt 0:00:47]} exd4 {[%emt 0:00:31]} 21. Nbxd4 {[%emt 0:00:58]} Rad8 {[%emt 0:07:24]} 22. Rxe8+ {[%emt 0:00:31]} Rxe8 {[%emt 0:00:16]} 23. Rd1 {[%emt 0:00:26]} Nxd4 {[%emt 0:01:57]} 24. Nxd4 {[%emt 0:00:09]} c6 {[%emt 0:01:54]} 25. Nb3 {[%emt 0:01:13]} Qc7 {[%emt 0:01:17]} 26. Nd4 {[%emt 0:01:03]} Nf6 {[%emt 0:03:54]} 27. b4 {[%emt 0:04:49]} Nd5 {[%emt 0:02:03]} 28. b5 {[%emt 0:00:50]} cxb5 {[%emt 0:06:09]} 29. Nxb5 {[%emt 0:00:10]} Qc5 {[%emt 0:01:03]} 30. Qf5 {[%emt 0:04:38]} Rd8 {[%emt 0:00:24]} 31. Qe4 {[%emt 0:00:37]} f5 {[%emt 0:06:46]} 32. Qe6+ {[%emt 0:01:40]} Kh8 {[%emt 0:00:17]} 33. Qxf5 {[%emt 0:00:07]} Qc6 {[%emt 0:01:13]} 34. Qf3 {[%emt 0:03:27]} Rd7 {[%emt 0:02:29]} 35. Qf8+ Kh7 {[%emt 0:00:15]} 36. Qf5+ {[%emt 0:02:21]} g6 {[%emt 0:00:12]} 37. Qe5 {[%emt 0:01:16]} Nb6 {[%emt 0:03:18]} 38. Rxd7+ {[%emt 0:01:56]} Qxd7 {[%emt 0:01:43]} 39. Qd6 {[%emt 0:01:31]} Qc6 {[%emt 0:06:38]} 40. Qd4 {[%emt 0:01:34]} Nd5 {[%emt 0:04:19]} 41. c4 {[%emt 0:22:22]} Nb6 {[%emt 0:15:21]} 42. c5 {[%emt 0:00:07]} Nd7 {[%emt 0:00:43]} 43. Qd2 {[%emt 0:01:19]} Nxc5 {[%emt 0:01:44]} 44. Qxa5 {[%emt 0:00:26]} h5 {[%emt 0:01:29]} 45. Qb4 {[%emt 0:01:23]} Qd5 {[%emt 0:01:25]} 46. Nc3 {[%emt 0:02:08]} Qe5 {[%emt 0:03:04]} 47. Nb5 {[%emt 0:01:51]} Qa1+ {[%emt 0:08:19]} 48. Kh2 {[%emt 0:00:09]} Qe5+ {[%emt 0:03:53]} 49. g3 {[%emt 0:00:49]} Qf5 {[%emt 0:01:38]} 50. Qd4 {[%emt 0:01:40]} b6 {[%emt 0:05:48]} 51. Nc3 {[%emt 0:00:39]} Nd7 {[%emt 0:02:36]} 52. Nd5 {[%emt 0:03:38] normal} 1/2-1/2

[Event "GER-ch Youth U10 2019"]
[Site "Willingen"]
[Date "2019.06.09"]
[Round "1.5"]
[White "Sauer, Tim"]
[Black "Aniol, Nico"]
[Result "1-0"]
[ECO "A22"]
[WhiteElo "1553"]
[BlackElo "1406"]
[Annotator "NA"]
[PlyCount "82"]
[EventDate "2019.06.07"]
[EventType "swiss"]
[EventRounds "11"]
[EventCountry "GER"]
[SourceTitle "playchess.com"]
[Source "ChessBase"]
[SourceQuality "1"]
[TimeControl "40/4500+30:900+30"]

1. c4 {[%emt 0:00:00]} e5 {[%emt 0:00:00]} 2. Nc3 {[%emt 0:00:00]} Nf6 {[%emt 0:00:00]} 3. g3 {[%emt 0:00:00]} Nc6 {[%emt 0:00:30]} 4. Bg2 {[%emt 0:00:00]} Bc5 {[%emt 0:00:28]} 5. e3 {[%emt 0:00:00]} O-O {[%emt 0:00:34]} 6. Nge2 {[%emt 0:00:40]} d6 {[%emt 0:00:22]} 7. O-O {[%emt 0:00:37]} Be6 {[%emt 0:00:52]} 8. d4 {[%emt 0:00:12]} exd4 {[%emt 0:01:29]} 9. exd4 {[%emt 0:00:14]} Bxc4 {[%emt 0:06:37]} 10. dxc5 {[%emt 0:00:45]} dxc5 {[%emt 0:00:12]} 11. Bxc6 {[%emt 0:10:37]} bxc6 {[%emt 0:00:06]} 12. Qxd8 {[%emt 0:00:40]} Raxd8 {[%emt 0:00:11]} 13. Be3 {[%emt 0:00:38]} Rfe8 {[%emt 0:00:20]} 14. Rfe1 {[%emt 0:17:59]} Re5 {[%emt 0:19:42]} 15. Nf4 {[%emt 0:15:57]} Rde8 {[%emt 0:01:55]} 16. Ng2 h6 {[%emt 0:23:28]} 17. Bf4 {[%emt 0:03:55]} R5e7 {[%emt 0:01:04]} 18. Rxe7 {[%emt 0:02:17]} Rxe7 {[%emt 0:00:14]} 19. Re1 {[%emt 0:00:15]} Rd7 {[%emt 0:00:28]} 20. b3 {[%emt 0:02:21]} Be6 {[%emt 0:00:41]} 21. Na4 {[%emt 0:05:04]} c4 {[%emt 0:01:13]} 22. Nc5 {[%emt 0:00:45]} Re7 {[%emt 0:00:51]} 23. Nxe6 {[%emt 0:00:51]} fxe6 {[%emt 0:00:13]} 24. bxc4 {[%emt 0:00:11]} g5 {[%emt 0:00:34]} 25. Be5 {[%emt 0:00:40]} Ne8 {[%emt 0:02:05]} 26. Ne3 {[%emt 0:03:27]} Kf7 {[%emt 0:00:27]} 27. c5 {[%emt 0:00:59]} Kg6 {[%emt 0:00:08]} 28. g4 {[%emt 0:00:17]} Rd7 {[%emt 0:00:24]} 29. Rd1 {[%emt 0:00:07]} Rf7 {[%emt 0:00:28]} 30. Kg2 {[%emt 0:00:18]} h5 {[%emt 0:00:26]} 31. h3 {[%emt 0:00:17]} h4 {[%emt 0:00:22]} 32. Nc4 {[%emt 0:00:21]} Nf6 {[%emt 0:00:30]} 33. Bxf6 {[%emt 0:00:50]} Kxf6 {[%emt 0:00:06]} 34. Na5 {[%emt 0:00:21]} e5 {[%emt 0:01:55]} 35. Nxc6 {[%emt 0:00:21]} a6 {[%emt 0:00:12]} 36. Nb8 {[%emt 0:01:16]} a5 {[%emt 0:00:07]} 37. Nd7+ {[%emt 0:00:31]} Ke6 {[%emt 0:00:20]} 38. c6 {[%emt 0:01:25]} Rf4 {[%emt 0:00:13]} 39. Nc5+ {[%emt 0:00:41]} Kf6 {[%emt 0:00:25]} 40. Nb7 {[%emt 0:05:11]} Rc4 {[%emt 0:00:39]} 41. Nxa5 {[%emt 0:17:26]} Rc5 {[%emt 0:15:12] normal} 1-0

[Event "GER-ch Youth U10 2019"]
[Site "Willingen"]
[Date "2019.06.09"]
[Round "1.6"]
[White "Meng, Yuxuan"]
[Black "Malinowsky, Levi"]
[Result "1-0"]
[ECO "B76"]
[WhiteElo "1288"]
[BlackElo "1400"]
[Annotator "NA"]
[PlyCount "69"]
[EventDate "2019.06.07"]
[EventType "swiss"]
[EventRounds "11"]
[EventCountry "GER"]
[SourceTitle "playchess.com"]
[Source "ChessBase"]
[SourceQuality "1"]
[TimeControl "40/4500+30:900+30"]

1. e4 {[%emt 0:00:00]} c5 {[%emt 0:00:00]} 2. Nf3 {[%emt 0:00:00]} d6 {[%emt 0:01:53]} 3. d4 {[%emt 0:00:00]} cxd4 {[%emt 0:04:25]} 4. Nxd4 {[%emt 0:00:01]} Nf6 {[%emt 0:01:09]} 5. Nc3 {[%emt 0:00:10]} g6 {[%emt 0:00:39]} 6. Be3 {[%emt 0:00:35]} Bg7 {[%emt 0:01:57]} 7. f3 {[%emt 0:00:12]} O-O {[%emt 0:01:01]} 8. Qd2 {[%emt 0:00:23]} Nc6 {[%emt 0:02:23]} 9. O-O-O {[%emt 0:00:35]} Bd7 {[%emt 0:01:01]} 10. Bh6 {[%emt 0:02:13]} Qa5 {[%emt 0:11:30]} 11. Nb3 {[%emt 0:08:04]} Qc7 {[%emt 0:04:53]} 12. Bxg7 {[%emt 0:00:50]} Kxg7 {[%emt 0:00:10]} 13. g4 {[%emt 0:02:13]} Ne5 {[%emt 0:04:29]} 14. Be2 {[%emt 0:01:13]} b5 {[%emt 0:07:57]} 15. h4 {[%emt 0:05:33]} h5 {[%emt 0:10:59]} 16. gxh5 {[%emt 0:00:30]} Nxh5 {[%emt 0:00:30]} 17. f4 {[%emt 0:02:43]} Nc4 {[%emt 0:02:44]} 18. Qd4+ {[%emt 0:02:42]} f6 {[%emt 0:02:40]} 19. Qf2 {[%emt 0:06:09]} e5 {[%emt 0:06:28]} 20. f5 {[%emt 0:03:26]} Nf4 {[%emt 0:03:56]} 21. Rdg1 {[%emt 0:07:52]} Kf7 {[%emt 0:06:03]} 22. Nd5 {[%emt 0:02:49]} Nxd5 {[%emt 0:01:39]} 23. fxg6+ {[%emt 0:00:25]} Ke7 {[%emt 0:01:12]} 24. exd5 {[%emt 0:00:25]} f5 {[%emt 0:01:44]} 25. g7 {[%emt 0:00:54]} Rg8 {[%emt 0:00:22]} 26. h5 {[%emt 0:00:11]} f4 {[%emt 0:00:24]} 27. Bd3 {[%emt 0:01:09]} Ne3 {[%emt 0:01:43]} 28. h6 {[%emt 0:01:43]} Rac8 {[%emt 0:00:38]} 29. h7 {[%emt 0:03:17]} Nxd5 {[%emt 0:00:45]} 30. h8=Q {[%emt 0:01:53]} Nb4 {[%emt 0:00:49]} 31. Qhh4+ {[%emt 0:00:16]} Kf7 {[%emt 0:00:47]} 32. Bg6+ {[%emt 0:00:54]} Ke6 {[%emt 0:00:12]} 33. Qg4+ {[%emt 0:00:21]} Kd5 {[%emt 0:00:50] normal} 34. Qff3+ {[%emt 0:01:23]} Kc4 {[%emt 0:00:43]} 35. Qe4# {[%emt 0:00:09] normal} 1-0

[Event "GER-ch Youth U10 2019"]
[Site "Willingen"]
[Date "2019.06.09"]
[Round "1.7"]
[White "Klaska, Philipp Leon"]
[Black "Guo, Jacob Tingshen"]
[Result "1/2-1/2"]
[ECO "C02"]
[WhiteElo "1444"]
[BlackElo "1420"]
[Annotator "NA"]
[PlyCount "40"]
[EventDate "2019.06.07"]
[EventType "swiss"]
[EventRounds "11"]
[EventCountry "GER"]
[SourceTitle "playchess.com"]
[Source "ChessBase"]
[SourceQuality "1"]
[TimeControl "40/4500+30:900+30"]

1. e4 {[%emt 0:00:00]} e6 {[%emt 0:00:00]} 2. d4 {[%emt 0:00:00]} d5 {[%emt 0:00:00]} 3. e5 {[%emt 0:00:08]} c5 {[%emt 0:00:00]} 4. c3 {[%emt 0:00:07]} Nc6 {[%emt 0:00:20]} 5. Nf3 {[%emt 0:00:11]} Bd7 {[%emt 0:00:40]} 6. Be2 {[%emt 0:07:11]} Nge7 {[%emt 0:06:04]} 7. O-O {[%emt 0:05:32]} cxd4 {[%emt 0:06:19]} 8. cxd4 {[%emt 0:03:47]} Nf5 {[%emt 0:07:09]} 9. Be3 {[%emt 0:07:24]} Be7 {[%emt 0:07:08]} 10. Qd2 {[%emt 0:03:48]} O-O {[%emt 0:07:07]} 11. Nc3 {[%emt 0:02:43]} Rc8 {[%emt 0:09:09]} 12. Bd3 {[%emt 0:12:56]} Nxe3 {[%emt 0:02:55]} 13. Qxe3 {[%emt 0:04:45]} Nb4 {[%emt 0:03:54]} 14. Bb1 {[%emt 0:04:46]} Qb6 {[%emt 0:04:27]} 15. a3 {[%emt 0:08:24]} Nc6 {[%emt 0:03:14]} 16. b4 {[%emt 0:03:22]} a6 {[%emt 0:04:58]} 17. g3 {[%emt 0:03:08]} Na7 {[%emt 0:03:19]} 18. Kg2 {[%emt 0:04:23]} Rfd8 {[%emt 0:04:02]} 19. h4 {[%emt 0:02:18]} g6 {[%emt 0:04:39]} 20. h5 {[%emt 0:02:09]} Kg7 {[%emt 0:01:42] normal} 1/2-1/2

[Event "GER-ch Youth U10 2019"]
[Site "Willingen"]
[Date "2019.06.09"]
[Round "1.8"]
[White "Bock, Leonas"]
[Black "Haubold, Sebastian Marcel"]
[Result "0-1"]
[ECO "B08"]
[WhiteElo "1363"]
[BlackElo "1506"]
[Annotator "NA"]
[PlyCount "50"]
[EventDate "2019.06.07"]
[EventType "swiss"]
[EventRounds "11"]
[EventCountry "GER"]
[SourceTitle "playchess.com"]
[Source "ChessBase"]
[SourceQuality "1"]
[TimeControl "40/4500+30:900+30"]

1. d4 {[%emt 0:00:00]} Nf6 {[%emt 0:00:00]} 2. Nf3 {[%emt 0:00:27]} g6 {[%emt 0:01:22]} 3. Nc3 {[%emt 0:01:14]} Bg7 {[%emt 0:01:40]} 4. e4 {[%emt 0:01:15]} d6 {[%emt 0:03:01]} 5. Be3 {[%emt 0:03:01]} O-O {[%emt 0:01:39]} 6. Qd2 {[%emt 0:02:21]} Nbd7 {[%emt 0:01:30]} 7. Bh6 {[%emt 0:02:58]} e5 {[%emt 0:01:29]} 8. Bxg7 {[%emt 0:01:32]} Kxg7 {[%emt 0:03:04]} 9. h4 {[%emt 0:06:43]} Re8 {[%emt 0:04:15]} 10. Be2 {[%emt 0:05:47]} exd4 {[%emt 0:01:13]} 11. Qxd4 {[%emt 0:02:40]} Qe7 {[%emt 0:00:24]} 12. Nd2 {[%emt 0:19:43]} c5 {[%emt 0:12:35]} 13. Qe3 {[%emt 0:01:23]} d5 {[%emt 0:02:39]} 14. Nxd5 {[%emt 0:00:33]} Nxd5 {[%emt 0:00:08]} 15. exd5 {[%emt 0:01:26]} Qxe3 {[%emt 0:00:43]} 16. fxe3 {[%emt 0:00:51]} Rxe3 {[%emt 0:03:05]} 17. h5 {[%emt 0:01:49]} Nf6 {[%emt 0:02:19]} 18. h6+ {[%emt 0:02:16]} Kf8 {[%emt 0:01:08]} 19. c4 {[%emt 0:01:43]} Bg4 {[%emt 0:00:09]} 20. Nf3 {[%emt 0:04:01]} Rae8 {[%emt 0:01:24]} 21. O-O {[%emt 0:11:22]} Rxe2 {[%emt 0:01:43]} 22. Ng5 {[%emt 0:01:40]} Bf5 {[%emt 0:01:02]} 23. g4 {[%emt 0:00:59]} Nxg4 {[%emt 0:04:12]} 24. Nxh7+ {[%emt 0:02:06]} Kg8 {[%emt 0:02:06] normal} 25. Ng5 {[%emt 0:03:48]} Nxh6 {[%emt 0:00:42] normal} 0-1

[Event "GER-ch Youth U10 2019"]
[Site "Willingen"]
[Date "2019.06.09"]
[Round "1.9"]
[White "Navarro Jahnke, Leo"]
[Black "Yue, Qihang"]
[Result "1-0"]
[ECO "E21"]
[WhiteElo "1334"]
[BlackElo "1354"]
[Annotator "NA"]
[PlyCount "94"]
[EventDate "2019.06.07"]
[EventType "swiss"]
[EventRounds "11"]
[EventCountry "GER"]
[SourceTitle "playchess.com"]
[Source "ChessBase"]
[SourceQuality "1"]
[TimeControl "40/4500+30:900+30"]

1. d4 {[%emt 0:00:00]} Nf6 {[%emt 0:00:00]} 2. c4 {[%emt 0:00:00]} e6 {[%emt 0:00:00]} 3. Nc3 {[%emt 0:00:23]} Bb4 {[%emt 0:00:00]} 4. Nf3 {[%emt 0:00:26]} d5 {[%emt 0:00:12]} 5. Bf4 {[%emt 0:04:41]} Nc6 {[%emt 0:00:19]} 6. e3 {[%emt 0:01:14]} Bd7 {[%emt 0:00:23]} 7. Bd3 {[%emt 0:00:37]} O-O {[%emt 0:00:11]} 8. O-O {[%emt 0:00:22]} dxc4 {[%emt 0:00:26]} 9. Bxc4 {[%emt 0:00:57]} Na5 {[%emt 0:02:16]} 10. Bd3 {[%emt 0:01:15]} c5 {[%emt 0:22:09]} 11. Bd6 {[%emt 0:04:44]} Re8 {[%emt 0:00:33]} 12. Bxc5 {[%emt 0:02:51]} Bxc5 {[%emt 0:00:22]} 13. dxc5 {[%emt 0:00:08]} Qc7 {[%emt 0:05:07]} 14. b4 {[%emt 0:01:00]} Nc6 {[%emt 0:01:31]} 15. a3 {[%emt 0:00:06]} a6 {[%emt 0:01:32]} 16. Re1 {[%emt 0:02:40]} e5 {[%emt 0:01:54]} 17. e4 {[%emt 0:00:07]} Be6 {[%emt 0:02:54]} 18. Ng5 {[%emt 0:01:49]} Nd4 {[%emt 0:06:08]} 19. Ne2 {[%emt 0:06:12]} Rad8 {[%emt 0:08:43]} 20. Nxd4 {[%emt 0:04:06]} Rxd4 {[%emt 0:00:40]} 21. Nf3 {[%emt 0:01:42]} Rdd8 {[%emt 0:02:13]} 22. Qe2 {[%emt 0:01:57]} Bg4 {[%emt 0:02:08]} 23. Rad1 {[%emt 0:01:30]} Qe7 {[%emt 0:08:42]} 24. Bc2 {[%emt 0:01:40]} Rxd1 {[%emt 0:01:13]} 25. Rxd1 {[%emt 0:05:36]} Rd8 {[%emt 0:01:18]} 26. Rxd8+ {[%emt 0:00:16]} Qxd8 {[%emt 0:00:05]} 27. Qd3 {[%emt 0:00:08]} Qxd3 {[%emt 0:00:15]} 28. Bxd3 {[%emt 0:00:06]} Bxf3 {[%emt 0:00:31]} 29. gxf3 {[%emt 0:00:09]} Kf8 {[%emt 0:00:22]} 30. c6 {[%emt 0:00:32]} bxc6 {[%emt 0:00:10]} 31. Bxa6 {[%emt 0:00:04]} Ke7 {[%emt 0:00:26]} 32. Bc4 {[%emt 0:00:33]} Nd7 {[%emt 0:00:30]} 33. a4 {[%emt 0:00:36]} Nb6 {[%emt 0:00:44]} 34. Bb3 {[%emt 0:00:06]} f6 {[%emt 0:01:48]} 35. a5 {[%emt 0:00:08]} Na8 {[%emt 0:00:40]} 36. Kf1 {[%emt 0:00:06]} Kd7 {[%emt 0:00:43]} 37. Ke2 {[%emt 0:00:11]} Nc7 {[%emt 0:07:41]} 38. Kd3 {[%emt 0:00:16]} Na6 {[%emt 0:05:39]} 39. Kc4 {[%emt 0:00:16]} Kc7 {[%emt 0:00:38]} 40. Ba4 {[%emt 0:02:52]} Nb8 {[%emt 0:01:20]} 41. b5 {[%emt 0:15:50]} cxb5+ {[%emt 0:02:55]} 42. Bxb5 {[%emt 0:00:00]} Nc6 {[%emt 0:03:27]} 43. Bxc6 Kxc6 {[%emt 0:00:05]} 44. a6 {[%emt 0:00:00]} Kb6 {[%emt 0:00:06]} 45. Kd5 {[%emt 0:00:00]} Kxa6 {[%emt 0:00:13]} 46. Ke6 {[%emt 0:00:00]} Kb5 {[%emt 0:00:24]} 47. Kf7 {[%emt 0:00:00]} Kc4 {[%emt 0:00:20] normal} 1-0

[Event "GER-ch Youth U10 2019"]
[Site "Willingen"]
[Date "2019.06.09"]
[Round "1.12"]
[White "Yang, Marco"]
[Black "Haubold, Christian Lucas"]
[Result "0-1"]
[ECO "B21"]
[WhiteElo "1278"]
[BlackElo "1387"]
[Annotator "NA"]
[PlyCount "54"]
[EventDate "2019.06.07"]
[EventType "swiss"]
[EventRounds "11"]
[EventCountry "GER"]
[SourceTitle "playchess.com"]
[Source "ChessBase"]
[SourceQuality "1"]
[TimeControl "40/4500+30:900+30"]

1. e4 c5 2. d4 cxd4 3. c3 dxc3 4. Nxc3 Nc6 5. Nf3 g6 6. Bc4 Bg7 7. O-O d6 8. Qe2 Bg4 9. Rd1 Bxf3 10. Qxf3 Nf6 11. Bf4 Qb6 12. e5 dxe5 13. Bxe5 Nxe5 14. Bb5+ Qxb5 15. Qxf6 Bxf6 16. Nxb5 O-O 17. f4 Nc4 18. Rd7 a6 19. Nc7 Rad8 20. Rxd8 Rxd8 21. Rc1 Nxb2 22. Rb1 Bd4+ 23. Kf1 e6 24. Ke2 Rc8 25. Rc1 Bb6 26. Rc2 Na4 27. Rc4 Nc5 {normal} 0-1